bitfinex-derivatives/quotes_BTCF0:USTF0_20251206
["timestamp","ask_amount","ask_price","bid_price","bid_amount"]
[1764991281617,0.96565875,89721.0,89720.0,0.0111437]
[1764991283712,0.96565875,89721.0,89720.0,0.1003537]
[1764991283907,0.90573875,89721.0,89720.0,0.1003537]
[1764991284410,0.90573875,89721.0,89720.0,0.0461137]
[1764991284710,0.90573875,89721.0,89720.0,0.1003537]
[1764991287918,0.90573875,89721.0,89720.0,0.0802837]
[1764991289018,0.90573875,89721.0,89720.0,0.1003537]
[1764991294025,0.90573875,89721.0,89720.0,0.0802837]
[1764991296219,0.38853875,89721.0,89720.0,0.0997937]
[1764991296420,0.90577875,89721.0,89720.0,0.0997937]
[1764991297323,0.90577875,89721.0,89720.0,0.0802837]
[1764991297522,0.90577875,89721.0,89720.0,0.0997937]
[1764991302523,0.90577875,89721.0,89720.0,0.0802837]
[1764991303128,0.90577875,89721.0,89720.0,0.0461137]
[1764991303324,0.90577875,89721.0,89720.0,0.0794037]
[1764991303832,0.90577875,89721.0,89720.0,0.0461137]
[1764991305843,0.90577875,89721.0,89720.0,0.0794037]
[1764991306234,0.93044837,89721.0,89720.0,0.0794037]
[1764991307241,0.93044837,89721.0,89720.0,0.0989137]
[1764991311249,0.90577875,89721.0,89720.0,0.0989137]
[1764991311547,0.90577875,89721.0,89720.0,0.15861601]
[1764991313348,0.90577875,89721.0,89720.0,0.07084601]
[1764991314354,0.90577875,89721.0,89720.0,0.0111437]
[1764991314559,0.93046214,89721.0,89720.0,0.0111437]
[1764991325458,0.93046214,89721.0,89720.0,0.0417737]
[1764991325664,0.93046214,89721.0,89720.0,0.0910037]
[1764991325665,0.41322214,89721.0,89720.0,0.0910037]
[1764991325853,0.93046214,89721.0,89720.0,0.0910037]
[1764991326360,0.11000004,89721.0,89720.0,0.0910037]
[1764991326567,0.05468713,89729.0,89728.0,0.0725427]
[1764991326757,0.36468713,89729.0,89728.0,0.07496272]
[1764991327063,0.73996713,89729.0,89728.0,0.07496272]
[1764991328465,0.74096713,89729.0,89728.0,0.07496272]
[1764991328862,0.74196713,89729.0,89728.0,0.07496272]
[1764991332571,0.74196713,89729.0,89728.0,0.09342272]
[1764991340568,0.74196713,89729.0,89728.0,0.04419272]
[1764991340769,0.74196713,89729.0,89728.0,0.07496272]
[1764991342674,0.74196713,89729.0,89728.0,0.0725427]
[1764991351279,0.74196713,89729.0,89728.0,0.0111427]
[1764991351481,0.74196713,89729.0,89728.0,0.0921927]
[1764991353476,0.74196713,89729.0,89728.0,0.0111427]
[1764991353878,0.76635552,89729.0,89728.0,0.0111427]
[1764991359285,0.76635552,89729.0,89728.0,0.1215327]
[1764991361788,0.74196713,89729.0,89728.0,0.1215327]
[1764991364486,0.74196713,89729.0,89728.0,0.1700927]
[1764991364784,0.74196713,89729.0,89728.0,0.1215327]
[1764991364987,0.74196713,89729.0,89728.0,0.1700927]
[1764991367982,0.76632115,89729.0,89728.0,0.1700927]
[1764991368186,0.76632115,89729.0,89728.0,0.1215327]
[1764991369884,0.08104115,89729.0,89728.0,0.1215327]
[1764991370088,0.05668713,89729.0,89728.0,0.1215327]
[1764991370790,0.00216713,89729.0,89728.0,0.1215327]
[1764991371092,0.00016713,89729.0,89728.0,0.1215327]
[1764991371295,0.07422713,89729.0,89728.0,0.1215327]
[1764991372591,3e-08,89729.0,89728.0,0.1215327]
[1764991374590,3e-08,89729.0,89728.0,0.1225327]
[1764991376204,0.07406,89741.0,89740.0,0.1900312]
[1764991376405,0.53564,89741.0,89740.0,0.1900312]
[1764991377102,0.53564,89741.0,89740.0,0.1530512]
[1764991377804,0.53564,89741.0,89740.0,0.0111412]
[1764991380508,0.53764,89741.0,89740.0,0.0111412]
[1764991381301,0.53664,89741.0,89740.0,0.0111412]
[1764991381504,0.53764,89741.0,89740.0,0.0111412]
[1764991381912,0.53664,89741.0,89740.0,0.0111412]
[1764991382107,0.53764,89741.0,89740.0,0.0111412]
[1764991382807,0.53664,89741.0,89740.0,0.0111412]
[1764991383009,0.53764,89741.0,89740.0,0.0111412]
[1764991387614,0.53764,89741.0,89740.0,0.0803312]
[1764991387806,0.53764,89741.0,89740.0,0.1937512]
[1764991389818,0.53564,89741.0,89740.0,0.1937512]
[1764991390019,0.53664,89741.0,89740.0,0.1937512]
[1764991390220,0.26664,89741.0,89740.0,0.1937512]
[1764991390420,0.14136713,89749.0,89748.0,0.1937502]
[1764991390717,0.54136713,89749.0,89748.0,0.19617022]
[1764991392724,0.54236713,89749.0,89748.0,0.19617022]
[1764991393223,0.54136713,89749.0,89748.0,0.19617022]
[1764991393408,0.54236713,89749.0,89748.0,0.19617022]
[1764991394022,0.54236713,89749.0,89748.0,0.20755625]
[1764991395224,0.54236713,89749.0,89748.0,0.15502022]
[1764991395612,0.54236713,89749.0,89748.0,0.08275022]
[1764991396526,0.54236713,89749.0,89748.0,0.0111402]
[1764991399321,0.56646781,89749.0,89748.0,0.0111402]
[1764991400216,0.56646781,89749.0,89748.0,0.1526002]
[1764991401426,0.56646781,89749.0,89748.0,0.0111402]
[1764991406022,0.1412,89733.0,89732.0,0.00016713]
[1764991406222,1.04234068,89733.0,89732.0,0.00016713]
[1764991407624,1.04234068,89733.0,89732.0,0.00216713]
[1764991408932,1.04334068,89733.0,89732.0,0.00216713]
[1764991409820,1.04434068,89733.0,89732.0,0.00016713]
[1764991416233,0.13904,89719.0,89718.0,0.0111439]
[1764991416433,1.03616,89719.0,89718.0,0.0111439]
[1764991416735,1.03616,89719.0,89718.0,0.0769839]
[1764991417038,1.03616,89719.0,89718.0,0.1479639]
[1764991417428,1.03616,89719.0,89718.0,0.1489639]
[1764991419639,1.03616,89719.0,89718.0,0.0121439]
[1764991421244,1.03616,89719.0,89718.0,0.1489639]
[1764991435251,1.06113121,89719.0,89718.0,0.1489639]
[1764991436359,1.06113121,89719.0,89718.0,0.0779839]
[1764991437755,1.06113121,89719.0,89718.0,0.1437739]
[1764991441553,1.06113121,89719.0,89718.0,0.0779839]
[1764991442051,1.06113121,89719.0,89718.0,0.0121439]
[1764991442360,1.06113121,89719.0,89718.0,0.0750239]
[1764991442750,1.06113121,89719.0,89718.0,0.1374639]
[1764991443460,1.06113121,89719.0,89718.0,0.0750239]
[1764991443759,1.06113121,89719.0,89718.0,0.0121439]
[1764991446357,1.06113121,89719.0,89718.0,0.1374639]
[1764991452266,1.06113121,89719.0,89718.0,0.0750239]
[1764991452466,1.06113121,89719.0,89718.0,0.0121439]
[1764991456258,1.06113121,89719.0,89718.0,0.001]
[1764991456458,0.12825,89711.0,89710.0,0.01131203]
[1764991456671,1.03541,89711.0,89710.0,0.01131203]
[1764991457171,1.03541,89711.0,89710.0,0.07419203]
[1764991457571,1.03541,89711.0,89710.0,0.13663203]
[1764991458073,1.06012709,89711.0,89710.0,0.13663203]
[1764991458273,1.03541,89711.0,89710.0,0.13663203]
[1764991459376,1.03541,89711.0,89710.0,0.13863203]
[1764991466878,1.03541,89711.0,89710.0,0.01331203]
[1764991467478,1.06011693,89711.0,89710.0,0.01331203]
[1764991468068,1.03541,89711.0,89710.0,0.01331203]
[1764991471180,1.03541,89711.0,89710.0,0.07619203]
[1764991471678,1.03541,89711.0,89710.0,0.01331203]
[1764991472077,1.03541,89711.0,89710.0,0.07024203]
[1764991472880,1.03541,89711.0,89710.0,0.01331203]
[1764991475873,1.0601157,89711.0,89710.0,0.01331203]
[1764991476574,1.0601157,89711.0,89702.0,0.05961219]
[1764991476575,0.09824,89703.0,89702.0,0.05961219]
[1764991476779,0.09824,89699.0,89698.0,0.05693]
[1764991477080,0.49824,89699.0,89698.0,0.12105]
[1764991477575,0.09824,89698.0,89697.0,0.0111465]
[1764991477776,0.46824,89698.0,89697.0,0.0111465]
[1764991477977,0.49294503,89698.0,89697.0,0.0680765]
[1764991478284,0.49292325,89698.0,89697.0,0.1321965]
[1764991479174,0.46824,89698.0,89697.0,0.1341965]
[1764991479576,0.46824,89698.0,89697.0,0.1401965]
[1764991483684,0.46824,89698.0,89697.0,0.0191465]
[1764991484583,0.46824,89698.0,89697.0,0.0760765]
[1764991486184,0.46824,89698.0,89697.0,0.0191465]
[1764991487290,0.46824,89698.0,89697.0,0.008]
[1764991489385,0.46824,89698.0,89697.0,0.0191466]
[1764991489689,0.46824,89698.0,89697.0,0.008]
[1764991490384,0.46824,89698.0,89697.0,0.06493]
[1764991492387,0.46824,89698.0,89697.0,0.008]
[1764991494194,0.46824,89698.0,89697.0,0.11394]
[1764991494489,0.46824,89698.0,89697.0,0.008]
[1764991495286,0.46824,89698.0,89697.0,0.05872]
[1764991495486,0.46824,89698.0,89697.0,0.11394]
[1764991495792,0.46824,89698.0,89697.0,0.14677]
[1764991498192,0.88724,89698.0,89697.0,0.14677]
[1764991499093,0.92593,89698.0,89697.0,0.14677]
[1764991499695,0.88724,89698.0,89697.0,0.14677]
[1764991501682,0.91996,89698.0,89697.0,0.14677]
[1764991501890,0.95268,89698.0,89697.0,0.14677]
[1764991502491,0.88724,89698.0,89697.0,0.14677]
[1764991505693,0.95268,89698.0,89697.0,0.14677]
[1764991510595,0.91996,89698.0,89697.0,0.14677]
[1764991511702,0.95268,89698.0,89697.0,0.14677]
[1764991519703,0.74268,89698.0,89697.0,0.14677]
[1764991520807,0.22544,89698.0,89697.0,0.14677]
[1764991521104,0.19272,89698.0,89697.0,0.14677]
[1764991521904,0.22544,89698.0,89697.0,0.14677]
[1764991522509,0.42544,89698.0,89697.0,0.14677]
[1764991524499,0.42544,89698.0,89697.0,0.11394]
[1764991528300,0.42544,89698.0,89697.0,0.17355219]
[1764991532618,0.42544,89698.0,89697.0,0.20220219]
[1764991546328,0.42544,89698.0,89697.0,0.06761219]
[1764991546526,0.42544,89698.0,89697.0,0.008]
[1764991547028,0.45012245,89698.0,89697.0,0.008]
[1764991548633,0.0461673,89691.0,89690.0,0.00011169]
[1764991548837,0.94800975,89691.0,89690.0,0.00011169]
[1764991549835,0.94800975,89691.0,89690.0,0.00311169]
[1764991550740,0.94800975,89691.0,89690.0,0.00411169]
[1764991560141,0.9233273,89691.0,89690.0,0.00411169]
[1764991561246,0.94795647,89691.0,89690.0,0.00411169]
[1764991561949,0.94795647,89691.0,89690.0,0.04757169]
[1764991562353,0.93680917,89691.0,89690.0,0.09128169]
[1764991562647,0.91218,89691.0,89690.0,0.09128169]
[1764991565741,0.87716,89691.0,89690.0,0.09128169]
[1764991568750,0.8823,89691.0,89690.0,0.09128169]
[1764991568941,0.88744,89691.0,89690.0,0.09128169]
[1764991571146,0.88744,89691.0,89690.0,0.00411169]
[1764991572454,0.01028,89687.0,89686.0,0.00027875]
[1764991572654,0.42028,89687.0,89686.0,0.00027875]
[1764991573759,0.44500724,89687.0,89686.0,0.00027875]
[1764991573953,0.44500724,89687.0,89656.0,0.07936912]
[1764991573954,0.0214294,89674.0,89656.0,0.07936912]
[1764991574154,0.01028,89656.0,89655.0,0.0693]
[1764991574354,0.93748,89656.0,89655.0,0.0693]
[1764991574547,0.93748,89656.0,89655.0,0.11301]
[1764991575154,0.93757199,89656.0,89655.0,0.11301]
[1764991575455,0.93757199,89656.0,89655.0,0.11501]
[1764991575857,0.93757199,89656.0,89655.0,0.002]
[1764991576450,0.93757199,89656.0,89655.0,0.007]
[1764991577953,0.93757199,89656.0,89655.0,0.0026336]
[1764991580659,0.93757199,89656.0,89655.0,0.0036336]
[1764991582049,0.93757199,89656.0,89655.0,0.003]
[1764991583853,0.93757199,89656.0,89640.0,0.02584]
[1764991583854,0.00428,89647.0,89640.0,0.02584]
[1764991584061,0.00428,89647.0,89625.0,0.02584]
[1764991584062,0.89169199,89647.0,89629.0,0.011155]
[1764991584761,0.90284479,89647.0,89629.0,0.011155]
[1764991584960,0.90284479,89647.0,89633.0,0.0111545]
[1764991585459,0.90284479,89647.0,89628.0,0.0111551]
[1764991586265,0.90684479,89647.0,89631.0,0.0111547]
[1764991588965,0.0111542,89636.0,89627.0,0.0111553]
[1764991589158,0.4354342,89636.0,89635.0,0.11301]
[1764991589466,0.95292619,89636.0,89635.0,0.11301]
[1764991589962,0.95292619,89636.0,89627.0,0.0111553]
[1764991590168,0.95292619,89636.0,89582.0,0.0111609]
[1764991590169,9.199e-05,89635.0,89610.0,0.10128]
[1764991590465,0.0111563,89619.0,89615.0,0.10128]
[1764991590667,0.0111565,89617.0,89615.0,0.10128]
[1764991590855,0.4411565,89617.0,89615.0,0.10128]
[1764991591052,0.43,89617.0,89616.0,0.08138002]
[1764991592570,0.43,89617.0,89616.0,0.08338002]
[1764991593362,0.43,89617.0,89616.0,0.08438002]
[1764991594870,0.43,89617.0,89616.0,0.08196]
[1764991602075,0.8702,89617.0,89616.0,0.08196]
[1764991606876,0.4402,89617.0,89616.0,0.08196]
[1764991610668,9.199e-05,89618.0,89617.0,0.0901165]
[1764991610870,9.199e-05,89618.0,89617.0,0.09253652]
[1764991611773,0.39009199,89618.0,89617.0,0.09253652]
[1764991612169,0.39009199,89618.0,89617.0,0.09353652]
[1764991612479,0.39009199,89618.0,89617.0,0.09453652]
[1764991617488,0.39009199,89618.0,89617.0,0.0921165]
[1764991628897,0.10009199,89618.0,89617.0,0.0921165]
[1764991629394,9.199e-05,89618.0,89617.0,0.0921165]
[1764991634493,0.39009199,89618.0,89617.0,0.0502565]
[1764991634697,0.39009199,89618.0,89617.0,0.0854965]
[1764991641405,9.199e-05,89618.0,89617.0,0.0854965]
[1764991650515,0.12009199,89618.0,89617.0,0.0854965]
[1764991655512,0.12009199,89618.0,89617.0,0.0502565]
[1764991655717,0.37009199,89618.0,89617.0,0.0131565]
[1764991655907,0.39507442,89618.0,89617.0,0.002]
[1764991671634,0.39507442,89618.0,89617.0,0.06175]
[1764991675140,0.39507442,89618.0,89617.0,0.002]
[1764991677639,0.39507442,89618.0,89617.0,0.03176]
[1764991677846,0.39507442,89618.0,89617.0,0.002]
[1764991678241,0.0111573,89611.0,89610.0,0.02232]
[1764991678446,0.92381973,89611.0,89610.0,0.02232]
[1764991679353,0.92381973,89611.0,89610.0,0.02332]
[1764991679541,0.92481973,89611.0,89610.0,0.02332]
[1764991679938,0.92481973,89611.0,89610.0,0.001]
[1764991681954,0.91366243,89611.0,89610.0,0.06149002]
[1764991682449,0.91366243,89611.0,89610.0,0.05907]
[1764991682944,0.39598243,89611.0,89610.0,0.05907]
[1764991683150,0.91370243,89611.0,89610.0,0.05907]
[1764991685439,0.39598243,89611.0,89610.0,0.05907]
[1764991685644,0.88872,89611.0,89610.0,0.05907]
[1764991686154,0.371,89611.0,89610.0,0.05907]
[1764991686453,0.88872,89611.0,89610.0,0.05907]
[1764991691257,0.021,89611.0,89610.0,0.05907]
[1764991697059,0.281,89611.0,89610.0,0.05907]
[1764991705263,0.001,89611.0,89610.0,0.05907]
[1764991713266,0.421,89611.0,89610.0,0.05907]
[1764991719676,0.421,89611.0,89610.0,0.07551]
[1764991728979,0.44636526,89611.0,89610.0,0.07551]
[1764991730683,0.44636526,89611.0,89610.0,0.04635]
[1764991731275,0.44636526,89611.0,89610.0,0.01744]
[1764991732589,0.44636526,89611.0,89610.0,0.001]
[1764991744301,0.96404526,89611.0,89610.0,0.001]
[1764991748814,0.96404526,89611.0,89610.0,0.01776]
[1764991754004,0.96404526,89611.0,89610.0,0.001]
[1764991755612,0.96304526,89611.0,89610.0,0.002]
[1764991755812,0.96804526,89611.0,89610.0,0.002]
[1764991756716,0.96804526,89611.0,89610.0,0.001]
[1764991758421,0.96804526,89611.0,89610.0,0.01776]
[1764991760120,0.96804526,89611.0,89610.0,0.04601]
[1764991760321,0.96804526,89611.0,89610.0,0.01776]
[1764991764023,0.96804526,89611.0,89610.0,0.04601]
[1764991764917,0.96804526,89611.0,89610.0,0.07596]
[1764991801749,0.96804526,89611.0,89610.0,0.001]
[1764991802048,0.96813345,89611.0,89606.0,0.00041261]
[1764991802250,0.02536526,89610.0,89589.0,0.0274199]
[1764991802450,0.0111595,89593.0,89589.0,0.01626]
[1764991802644,0.54300526,89592.0,89589.0,0.01626]
[1764991802843,0.02536526,89591.0,89589.0,0.01626]
[1764991803045,0.02536526,89590.0,89589.0,0.04583]
[1764991803246,0.39536526,89590.0,89589.0,0.07497]
[1764991803559,0.39550936,89590.0,89589.0,0.07497]
[1764991805054,0.39550936,89590.0,89589.0,0.07597]
[1764991805253,0.39550936,89590.0,89589.0,0.07797]
[1764991807354,0.3701441,89590.0,89589.0,0.07797]
[1764991810254,0.8878241,89590.0,89589.0,0.07797]
[1764991810555,0.3701441,89590.0,89589.0,0.07797]
[1764991810756,0.8878241,89590.0,89589.0,0.07797]
[1764991818964,0.898984,89590.0,89589.0,0.07797]
[1764991819157,0.8878241,89590.0,89589.0,0.07797]
[1764991820566,0.8878241,89590.0,89589.0,0.01926]
[1764991820958,0.8878241,89590.0,89589.0,0.07797]
[1764991825563,0.898984,89590.0,89589.0,0.07797]
[1764991825762,0.92411671,89590.0,89589.0,0.07797]
[1764991826263,0.92411671,89590.0,89589.0,0.01926]
[1764991826571,0.92411671,89590.0,89589.0,0.003]
[1764991827671,0.91295681,89590.0,89589.0,0.06171]
[1764991828671,0.39527681,89590.0,89589.0,0.06171]
[1764991828872,0.8878641,89590.0,89589.0,0.06171]
[1764991832270,0.91304715,89590.0,89589.0,0.06171]
[1764991833171,0.8878641,89590.0,89589.0,0.06171]
[1764991833473,0.91304615,89590.0,89589.0,0.06171]
[1764991833680,0.8878641,89590.0,89589.0,0.06171]
[1764991834173,0.91304547,89590.0,89589.0,0.06171]
[1764991834373,0.8878641,89590.0,89589.0,0.06171]
[1764991836465,0.91304424,89590.0,89589.0,0.06171]
[1764991836665,0.8878641,89590.0,89589.0,0.06171]
[1764991880095,0.09,89590.0,89589.0,0.06171]
[1764991880302,0.16472215,89610.0,89609.0,0.0691475]
[1764991880602,0.53287223,89610.0,89609.0,0.0691475]
[1764991881305,0.53295373,89610.0,89609.0,0.0691475]
[1764991881505,0.53895373,89610.0,89609.0,0.0691475]
[1764991881705,0.37135373,89610.0,89609.0,0.0691475]
[1764991889105,0.34624882,89610.0,89609.0,0.0691475]
[1764991906726,0.00624882,89610.0,89609.0,0.0691475]
[1764991907524,0.36064,89628.0,89609.0,0.0691475]
[1764991907525,0.36064,89628.0,89627.0,0.0695153]
[1764991907834,0.74577717,89628.0,89627.0,0.0695153]
[1764991908434,0.74577717,89628.0,89627.0,0.08071284]
[1764991908637,0.75377717,89628.0,89627.0,0.08071284]
[1764991908941,0.72864,89628.0,89627.0,0.08071284]
[1764991909747,0.73064,89628.0,89627.0,0.08071284]
[1764991911938,0.48064,89628.0,89627.0,0.08071284]
[1764991912549,0.01,89628.0,89627.0,0.08071284]
[1764991912740,0.002,89628.0,89627.0,0.08071284]
[1764991912944,0.003,89628.0,89627.0,0.08071284]
[1764991913641,0.002,89628.0,89627.0,0.08071284]
[1764991914748,0.00016743,89636.0,89635.0,0.0665043]
[1764991914947,0.18016743,89636.0,89635.0,0.06892432]
[1764991916148,0.18316743,89636.0,89635.0,0.06892432]
[1764991916347,0.00316743,89636.0,89635.0,0.06892432]
[1764991917252,0.16436267,89650.0,89645.0,0.066503]
[1764991917456,0.27027888,89646.0,89645.0,0.066503]
[1764991918555,0.04027888,89646.0,89645.0,0.066503]
[1764991919454,0.04427888,89646.0,89645.0,0.066503]
[1764991920548,0.00016733,89654.0,89653.0,0.066982]
[1764991920747,0.00016733,89654.0,89653.0,0.06940202]
[1764991921145,3e-08,89654.0,89653.0,0.43940202]
[1764991921456,1.01596,89672.0,89671.0,0.0661298]
[1764991921648,0.41,89672.0,89671.0,0.0661298]
[1764991922048,0.57484267,89680.0,89679.0,0.0661288]
[1764991922259,0.80048,89680.0,89679.0,0.0661288]
[1764991923545,0.80148,89680.0,89679.0,0.0661288]
[1764991924154,0.80048,89680.0,89679.0,0.0661288]
[1764991924348,0.80148,89680.0,89679.0,0.0661288]
[1764991924751,0.80348,89680.0,89679.0,0.0661288]
[1764991924947,0.393,89680.0,89679.0,0.0661288]
[1764991925350,0.181,89680.0,89679.0,0.0661288]
[1764991925555,0.402,89680.0,89679.0,0.0661288]
[1764991925751,0.3804707,89680.0,89679.0,0.0661288]
[1764991925956,0.031,89680.0,89679.0,0.0661288]
[1764991926157,0.002,89680.0,89679.0,0.0661288]
[1764991926555,0.001,89680.0,89679.0,0.0661288]
[1764991926765,0.002,89680.0,89679.0,0.0661288]
[1764991927260,0.002,89680.0,89679.0,0.4461288]
[1764991927455,0.00016733,89688.0,89685.0,0.0831381]
[1764991927654,0.00016733,89688.0,89687.0,0.05498]
[1764991927862,0.51736,89697.0,89696.0,0.05498]
[1764991928062,0.51736,89697.0,89696.0,0.0661267]
[1764991928063,0.90736,89697.0,89696.0,0.0661267]
[1764991929566,0.90836,89697.0,89696.0,0.0661267]
[1764991929962,0.90936,89697.0,89696.0,0.0661267]
[1764991930170,0.392,89697.0,89696.0,0.0661267]
[1764991930556,0.122,89697.0,89696.0,0.0661267]
[1764991931064,0.412,89697.0,89696.0,0.0661267]
[1764991931265,0.412,89697.0,89696.0,0.0111467]
[1764991931765,0.0111467,89696.0,89680.0,0.01701]
[1764991931961,0.16436267,89695.0,89686.0,0.0111479]
[1764991932163,0.52436267,89695.0,89686.0,0.0111479]
[1764991932466,0.0111469,89694.0,89686.0,0.0111479]
[1764991932664,0.4211469,89694.0,89680.0,0.01701]
[1764991933769,0.4221469,89694.0,89680.0,0.01701]
[1764991934068,0.4221469,89694.0,89689.0,0.0111475]
[1764991934874,0.411,89694.0,89689.0,0.0111475]
[1764991935563,0.411,89694.0,89680.0,0.0281586]
[1764991935768,0.0111479,89687.0,89680.0,0.0281586]
[1764991935972,0.4211479,89687.0,89680.0,0.0281586]
[1764991937666,0.0111483,89684.0,89680.0,0.0121486]
[1764991937861,0.4211483,89684.0,89680.0,0.0121486]
[1764991938263,0.4211483,89684.0,89680.0,0.001]
[1764991942974,0.02465493,89683.0,89680.0,0.00342002]
[1764991943164,0.02466545,89682.0,89680.0,0.001]
[1764991943472,0.36,89682.0,89680.0,0.001]
[1764991944163,0.02467491,89681.0,89680.0,0.001]
[1764991944363,0.40467491,89681.0,89680.0,0.001]
[1764991945572,0.40467491,89681.0,89676.0,0.0383991]
[1764991945772,0.38,89681.0,89680.0,0.002]
[1764991945974,0.92193104,89681.0,89680.0,0.002]
[1764991947171,0.92193104,89681.0,89680.0,0.01901]
[1764991947377,0.92193104,89681.0,89680.0,0.07399]
[1764991947575,0.92193104,89681.0,89680.0,0.07199]
[1764991948276,0.92193104,89681.0,89680.0,0.07399]
[1764991957680,0.89724,89681.0,89680.0,0.07399]
[1764991958378,0.921991,89681.0,89680.0,0.07399]
[1764991959580,0.601991,89681.0,89680.0,0.07399]
[1764991961773,0.06,89681.0,89680.0,0.07399]
[1764991963881,0.16436267,89700.0,89680.0,0.07399]
[1764991963882,0.16436267,89700.0,89699.0,0.0687463]
[1764991964074,0.41476952,89700.0,89699.0,0.0687463]
[1764991964972,0.41576952,89700.0,89699.0,0.0687463]
[1764991965381,0.41676952,89700.0,89699.0,0.0687463]
[1764991968372,0.392,89700.0,89699.0,0.0687463]
[1764991970385,0.082,89700.0,89699.0,0.0687463]
[1764991971094,0.002,89700.0,89699.0,0.0687463]
[1764991972175,0.51716,89718.0,89704.0,0.0111457]
[1764991972491,0.51716,89718.0,89717.0,0.0687441]
[1764991972695,0.97181346,89718.0,89717.0,0.0687441]
[1764991974187,0.94916,89718.0,89717.0,0.0687441]
[1764991974888,0.95316,89718.0,89717.0,0.0687441]
[1764991983895,0.95316,89718.0,89717.0,0.0111441]
[1764991984093,0.95316,89718.0,89717.0,0.0396441]
[1764991984296,0.95316,89718.0,89717.0,0.0683341]
[1764991986198,0.97781865,89718.0,89717.0,0.0683341]
[1764991992098,0.00044586,89726.0,89725.0,0.0683331]
[1764991992298,0.16408949,89750.0,89744.0,0.0111407]
[1764991992299,0.06026142,89746.0,89744.0,0.0111407]
[1764991992498,0.42,89746.0,89745.0,0.00242002]
[1764991992705,0.93708,89746.0,89745.0,0.05961002]
[1764991994399,0.94108,89746.0,89745.0,0.05961002]
[1764991994906,0.93808,89746.0,89745.0,0.05961002]
[1764991995212,0.93908,89746.0,89745.0,0.05961002]
[1764991998201,0.422,89746.0,89745.0,0.05961002]
[1764991999203,0.421,89746.0,89745.0,0.05961002]
[1764991999406,0.422,89746.0,89745.0,0.05961002]
[1764991999901,0.002,89746.0,89745.0,0.05961002]
[1764992000102,0.272,89746.0,89745.0,0.05961002]
[1764992000808,0.271,89746.0,89745.0,0.05961002]
[1764992005705,0.041,89746.0,89745.0,0.05961002]
[1764992011714,1e-07,89746.0,89745.0,0.05961002]
[1764992011918,0.00011066,89754.0,89753.0,0.07385]
[1764992011919,0.02421066,89754.0,89753.0,0.07385]
[1764992012110,0.0002785,89766.0,89765.0,0.0849881]
[1764992012312,0.0002785,89766.0,89765.0,0.09604921]
[1764992012609,0.0002785,89766.0,89765.0,0.0849881]
[1764992013006,0.0002785,89766.0,89765.0,0.09624352]
[1764992013212,0.2774,89788.0,89786.0,0.0566955]
[1764992013410,0.6974,89788.0,89787.0,0.04798002]
[1764992013609,0.72180894,89788.0,89787.0,0.04798002]
[1764992014313,0.72180894,89788.0,89787.0,0.07627002]
[1764992014818,0.72280894,89788.0,89787.0,0.07627002]
[1764992015113,0.6984,89788.0,89787.0,0.07627002]
[1764992018522,0.421,89788.0,89787.0,0.07627002]
[1764992019117,0.011,89788.0,89787.0,0.07627002]
[1764992020112,0.001,89788.0,89787.0,0.07627002]
[1764992021522,0.431,89788.0,89787.0,0.07627002]
[1764992024113,0.431,89788.0,89782.0,0.011136]
[1764992024422,0.02442516,89787.0,89780.0,0.0111362]
[1764992024727,0.02442516,89786.0,89780.0,0.0111362]
[1764992025022,0.02442516,89785.0,89779.0,0.04556]
[1764992025231,0.45442516,89785.0,89782.0,0.0111359]
[1764992025414,0.02442516,89784.0,89782.0,0.0111359]
[1764992025616,0.39442516,89784.0,89782.0,0.0111359]
[1764992025824,0.02442516,89783.0,89782.0,0.0111359]
[1764992026029,0.44442516,89783.0,89782.0,0.0111359]
[1764992026619,0.44442516,89783.0,89778.0,0.01130364]
[1764992026821,0.02442516,89782.0,89778.0,0.01130364]
[1764992027022,0.40442516,89782.0,89778.0,0.01130364]
[1764992027228,0.38,89782.0,89778.0,0.01130364]
[1764992028124,0.02432177,89781.0,89778.0,0.01130364]
[1764992028330,0.43,89781.0,89778.0,0.01130364]
[1764992028931,0.041,89779.0,89778.0,0.01130364]
[1764992029228,0.421,89779.0,89778.0,0.01130364]
[1764992030821,0.422,89779.0,89778.0,0.01130364]
[1764992032032,0.4331364,89779.0,89778.0,0.00016714]
[1764992032922,0.4321364,89779.0,89778.0,0.00016714]
[1764992033122,0.4331364,89779.0,89778.0,0.00016714]
[1764992033817,0.4321364,89779.0,89778.0,0.00016714]
[1764992034031,0.4331364,89779.0,89778.0,0.00016714]
[1764992035329,0.45748618,89779.0,89778.0,0.00016714]
[1764992042445,0.45748618,89779.0,89778.0,0.00258716]
[1764992042644,0.45748618,89779.0,89778.0,0.00016714]
[1764992043044,0.45748618,89779.0,89778.0,0.00258716]
[1764992043344,0.45748618,89779.0,89778.0,0.05123714]
[1764992044539,0.45748618,89779.0,89778.0,0.00016714]
[1764992049538,0.45748618,89779.0,89778.0,0.00258716]
[1764992049732,0.45748618,89779.0,89778.0,0.00016714]
[1764992054747,0.44634978,89779.0,89778.0,0.11009716]
[1764992055256,0.44634978,89779.0,89778.0,0.10767714]
[1764992068854,0.44634978,89779.0,89778.0,0.00016714]
[1764992069955,0.44634978,89779.0,89778.0,0.05263716]
[1764992070159,0.44634978,89779.0,89778.0,0.05021714]
[1764992072765,0.44634978,89779.0,89778.0,0.10219714]
[1764992073767,0.44634978,89779.0,89778.0,0.00016714]
[1764992074564,0.44634978,89779.0,89778.0,0.05021714]
[1764992077773,0.44634978,89779.0,89778.0,0.10219714]
[1764992087779,0.44634978,89779.0,89778.0,0.13149714]
[1764992092678,8e-08,89779.0,89778.0,0.13149714]
[1764992092979,0.08906,89796.0,89795.0,0.09157]
[1764992093182,0.44906,89796.0,89795.0,0.09157]
[1764992094278,0.45006,89796.0,89795.0,0.09157]
[1764992096390,0.45106,89796.0,89795.0,0.09157]
[1764992100487,0.45697,89796.0,89795.0,0.09157]
[1764992101287,0.362,89796.0,89793.0,0.0111347]
[1764992101490,0.09497,89794.0,89793.0,0.0599847]
[1764992101792,0.47497,89794.0,89793.0,0.0111347]
[1764992102193,0.47497,89794.0,89789.0,0.0111351]
[1764992102194,0.02001,89792.0,89789.0,0.0111351]
[1764992102390,0.09497,89790.0,89789.0,0.0111351]
[1764992102592,0.46497,89790.0,89789.0,0.1052551]
[1764992103797,0.46597,89790.0,89789.0,0.1052551]
[1764992104594,0.46597,89790.0,89789.0,0.0599851]
[1764992104796,0.48989392,89790.0,89789.0,0.0111351]
[1764992106491,0.09497,89786.0,89785.0,0.0111356]